bitfinex-derivatives/quotes_SOLF0:USTF0_20250311
["timestamp","ask_amount","ask_price","bid_price","bid_amount"]
[1741685274477,9.584e-05,124.44,124.43,47.05089154]
[1741685274677,178.95788653,124.51,124.43,314.69089154]
[1741685274877,13.39089154,124.55,124.46,13.39089154]
[1741685275077,13.39089154,124.55,124.47,41.6944]
[1741685275282,8.0325,124.51,124.47,41.6944]
[1741685275474,8.0325,124.51,124.47,8.0344]
[1741685275671,8.0325,124.51,124.48,33.66]
[1741685275979,0.05447281,124.5,124.48,33.711523]
[1741685276277,13.39089154,124.55,124.48,33.711523]
[1741685276580,8.0317,124.52,124.48,33.711523]
[1741685276780,0.05338354,124.53,124.48,33.711523]
[1741685277282,0.05338354,124.53,124.49,8.0331]
[1741685277479,0.05338354,124.53,124.48,33.711523]
[1741685277785,8.08438354,124.53,124.48,33.711523]
[1741685278083,0.05338354,124.53,124.48,47.10241454]
[1741685279286,0.05338354,124.53,124.48,33.711523]
[1741685279480,8.032,124.52,124.48,41.745223]
[1741685279783,0.05338354,124.53,124.48,33.711523]
[1741685280186,0.05338354,124.53,124.48,47.10241454]
[1741685280378,0.05338354,124.53,124.52,8.0314]
[1741685280579,0.05338354,124.53,124.52,33.64]
[1741685282082,8.08418354,124.53,124.52,33.64]
[1741685282482,8.0314,124.52,124.51,0.05898581]
[1741685282880,0.05338354,124.53,124.51,0.05898581]
[1741685283682,0.05338354,124.53,124.51,41.73068581]
[1741685283882,0.05338354,124.53,124.51,33.69898581]
[1741685284891,0.05338354,124.53,124.52,8.0314]
[1741685285188,0.05338354,124.53,124.51,33.69898581]
[1741685285887,8.0314,124.52,124.51,33.69898581]
[1741685286892,8.0314,124.52,124.51,0.05898581]
[1741685287092,8.0341,124.48,124.42,13.39089154]
[1741685287289,13.39089154,124.5,124.42,13.39089154]
[1741685287489,13.39089154,124.5,124.44,33.62]
[1741685287685,8.0355,124.46,124.44,33.62]
[1741685287889,4.2995,124.51,124.4,13.39089154]
[1741685288091,13.39089154,124.49,124.44,33.62]
[1741685288287,8.0351,124.47,124.46,0.05905496]
[1741685289497,0.05711064,124.48,124.46,0.05905496]
[1741685290590,8.0347,124.47,124.46,5.496e-05]
[1741685290896,21.42559154,124.47,124.46,5.496e-05]
[1741685291589,8.0383,124.42,124.4,33.62]
[1741685291790,8.0383,124.42,124.39,33.62]
[1741685291988,13.39089154,124.45,124.39,33.62]
[1741685292293,13.39089154,124.43,124.37,273.0609]
[1741685292497,13.39089154,124.43,124.39,33.62]
[1741685292797,0.05445337,124.42,124.4,0.05983488]
[1741685295200,0.05445337,124.42,124.4,8.09893488]
[1741685295395,0.05445337,124.42,124.4,0.05983488]
[1741685296096,0.05445337,124.42,124.4,8.09863488]
[1741685296293,0.05445337,124.42,124.4,0.05983488]
[1741685296794,12.1089,124.48,124.45,8.0355]
[1741685296999,4.0745,124.48,124.45,33.62]
[1741685297205,13.39089154,124.49,124.46,8.0349]
[1741685297496,13.39089154,124.49,124.45,33.62]
[1741685297697,17.46539154,124.51,124.46,8.0349]
[1741685297894,8.09180955,124.49,124.46,8.0910574]
[1741685298894,0.05810955,124.49,124.46,0.0561574]
[1741685299700,0.05810955,124.49,124.47,13.39089154]
[1741685299897,9.55e-06,124.49,124.48,41.654]
[1741685300695,9.55e-06,124.49,124.48,44.054]
[1741685302605,13.39089154,124.58,124.48,36.02]
[1741685302909,178.95788653,124.59,124.52,13.39089154]
[1741685303099,21.41669154,124.61,124.53,33.6]
[1741685303299,13.39089154,124.61,124.53,33.6]
[1741685303803,13.39089154,124.59,124.56,0.06003849]
[1741685303998,0.05200352,124.58,124.56,0.06003849]
[1741685304204,0.05200352,124.58,124.56,8.08833849]
[1741685304397,0.05200352,124.58,124.56,41.68833849]
[1741685304710,0.05200352,124.58,124.56,33.66003849]
[1741685305806,0.05200352,124.58,124.56,41.68863849]
[1741685306408,0.05200352,124.58,124.56,33.66003849]
[1741685306910,0.05200352,124.58,124.57,8.0282]
[1741685307407,19.35165641,124.67,124.66,8.0224]
[1741685307708,114.86310099,124.69,124.66,33.82]
[1741685308104,128.25399253,124.69,124.66,33.82]
[1741685308306,128.25399253,124.69,124.63,33.86]
[1741685308307,12.0992,124.68,124.63,33.86]
[1741685308509,21.35499802,124.67,124.66,0.05621554]
[1741685308813,12.0992,124.68,124.63,33.86]
[1741685309314,33.45419802,124.68,124.63,33.86]
[1741685309911,0.05730549,124.67,124.64,0.0608107]
[1741685312515,0.05730549,124.67,124.57,264.92]
[1741685312709,68.07419802,124.68,124.58,34.6]
[1741685312710,21.35499802,124.66,124.58,34.6]
[1741685312914,21.35499802,124.66,124.59,34.8]
[1741685313517,29.37789802,124.66,124.6,8.0258]
[1741685313717,0.05895438,124.64,124.61,0.06116127]
[1741685314718,0.05895438,124.64,124.61,8.08676127]
[1741685315018,0.05895438,124.64,124.61,0.06116127]
[1741685315817,0.05895438,124.64,124.61,8.08626127]
[1741685316018,0.05895438,124.64,124.61,0.06116127]
[1741685316413,0.05895438,124.64,124.63,8.0243]
[1741685316920,0.05895438,124.64,124.61,0.06116127]
[1741685317821,0.05895438,124.64,124.62,8.0246]
[1741685318019,0.05895438,124.64,124.61,0.06116127]
[1741685318221,0.05895438,124.64,124.63,8.0243]
[1741685318426,0.05895438,124.64,124.63,35.16]
[1741685319620,0.05895438,124.64,124.63,43.1843]
[1741685320323,0.05895438,124.64,124.62,8.0249]
[1741685320517,0.05895438,124.64,124.61,0.06116127]
[1741685321026,0.05895438,124.64,124.63,8.0243]
[1741685322921,0.05895438,124.64,124.61,8.08666127]
[1741685323137,0.05895438,124.64,124.61,36.48116127]
[1741685323726,0.05895438,124.64,124.63,8.0243]
[1741685327630,0.05895438,124.64,124.61,0.06116127]
[1741685327832,8.08305438,124.64,124.61,0.06116127]
[1741685328130,0.05895438,124.64,124.61,0.06116127]
[1741685328334,0.05895438,124.64,124.61,8.08676127]
[1741685328528,0.05895438,124.64,124.61,0.06116127]
[1741685328928,0.05895438,124.64,124.61,8.08656127]
[1741685330534,8.08275438,124.64,124.61,8.08656127]
[1741685330734,0.05895438,124.64,124.61,0.06116127]
[1741685331229,8.025,124.62,124.61,0.06116127]
[1741685332431,0.05895438,124.64,124.61,0.06116127]
[1741685333127,8.0243,124.63,124.61,0.06116127]
[1741685334627,8.025,124.62,124.61,0.06116127]
[1741685335031,21.4139524,124.64,124.57,301.82]
[1741685335229,21.35499802,124.62,124.57,301.82]
[1741685335536,4.0474,124.61,124.55,36.9]
[1741685336336,8.08846904,124.59,124.57,0.05237736]
[1741685336527,0.06116904,124.59,124.57,0.05237736]
[1741685336937,8.08846904,124.59,124.57,0.05237736]
[1741685337137,0.06116904,124.59,124.57,0.05237736]
[1741685337737,8.0276,124.58,124.57,0.05237736]
[1741685339631,21.44362328,124.59,124.52,8.0314]
[1741685339826,21.38245424,124.59,124.52,36.7]
[1741685340030,21.38245424,124.57,124.51,301.44]
[1741685340636,21.38245424,124.57,124.51,309.4717]
[1741685340830,0.05199189,124.55,124.53,0.05760665]
[1741685341532,8.0318,124.52,124.49,36.64]
[1741685341734,4.1694,124.54,124.49,36.62]
[1741685342233,21.38245424,124.57,124.49,44.653]
[1741685342435,8.5692,124.56,124.49,44.653]
[1741685342634,8.0308,124.53,124.52,0.05956141]
[1741685344041,0.05250451,124.54,124.52,0.05956141]
[1741685344231,0.05250451,124.54,124.53,44.5708]
[1741685346533,4.2555,124.6,124.53,36.54]
[1741685347734,0.06072825,124.58,124.55,0.05561171]
[1741685348743,0.06072825,124.58,124.5,36.54]
[1741685348744,21.38245424,124.57,124.5,36.54]
[1741685349037,8.2973,124.56,124.5,36.54]
[1741685349335,8.0305,124.54,124.5,36.54]
[1741685349541,8.2973,124.56,124.5,36.54]
[1741685349939,0.05562662,124.54,124.52,0.05455322]
[1741685350442,8.0308,124.53,124.52,0.05455322]
[1741685351939,194.0,124.53,124.38,219.88195318]
[1741685352143,21.38245424,124.51,124.4,37.85840796]
[1741685352437,21.38245424,124.51,124.39,245.53380742]
[1741685352438,21.38245424,124.48,124.41,36.4]
[1741685353035,8.08689568,124.46,124.43,0.05620221]
[1741685353231,0.05109568,124.46,124.43,0.05620221]
[1741685354241,8.0366,124.44,124.43,0.05620221]
[1741685355041,8.0366,124.44,124.43,2.21e-06]
[1741685355243,21.38245424,124.45,124.36,91.89468127]
[1741685355436,21.38245424,124.45,124.37,36.22]
[1741685356347,0.0593074,124.42,124.4,0.05904842]
[1741685356644,8.0389,124.41,124.4,0.05904842]
[1741685356845,0.0593074,124.42,124.35,264.88]
[1741685357040,8.0402,124.39,124.35,301.04]
[1741685357343,4.1115,124.42,124.35,301.04]
[1741685357648,8.0386,124.41,124.36,8.0414]
[1741685357837,8.0386,124.41,124.35,301.04]
[1741685358033,0.05443427,124.4,124.37,0.05104239]
[1741685359841,8.0398,124.39,124.37,0.05104239]
[1741685360047,0.05443427,124.4,124.37,0.05104239]
[1741685361840,8.09403427,124.4,124.37,0.05104239]
[1741685362343,0.05443427,124.4,124.37,0.05104239]
[1741685363641,8.0402,124.39,124.37,0.05104239]
[1741685363834,0.05443427,124.4,124.37,0.05104239]
[1741685365343,21.43688851,124.4,124.37,0.05104239]
[1741685365548,21.43688851,124.4,124.33,36.3]
[1741685365737,0.05443427,124.4,124.33,36.3]
[1741685366048,4.2468,124.41,124.33,36.3]
[1741685366650,0.05146347,124.38,124.37,8.0411]
[1741685367849,0.05146347,124.38,124.33,36.3]
[1741685369248,8.09256347,124.38,124.34,8.0427]
[1741685369448,0.05146347,124.38,124.33,36.3]
[1741685369850,8.09196347,124.38,124.35,8.0421]
[1741685370746,0.05146347,124.38,124.35,8.0421]
[1741685371050,0.05146347,124.38,124.34,36.06]
[1741685371648,0.05146347,124.38,124.36,8.0412]
[1741685372153,0.05146347,124.38,124.34,36.06]
[1741685372746,0.05146347,124.38,124.33,8.0435]
[1741685372948,0.05146347,124.38,124.33,35.94]
[1741685373351,0.05146347,124.38,124.32,43.964]
[1741685373749,8.0425,124.35,124.32,43.964]
[1741685374147,8.09704337,124.35,124.32,43.964]
[1741685374955,8.09714337,124.35,124.32,8.0441]
[1741685375154,0.05454337,124.35,124.33,13.41060952]
[1741685375355,13.41060952,124.41,124.34,35.78]
[1741685375659,13.41060952,124.41,124.35,8.0421]
[1741685375860,13.41060952,124.39,124.34,35.78]
[1741685376258,8.0409,124.38,124.34,43.8225]
[1741685376457,0.05517328,124.38,124.35,0.0552009]
[1741685376861,8.0411,124.37,124.35,0.0552009]
[1741685378565,8.0418,124.36,124.35,0.0552009]
[1741685378760,0.05517328,124.38,124.35,0.0552009]
[1741685379465,8.0417,124.37,124.35,0.0552009]
[1741685379966,0.05517328,124.38,124.35,0.0552009]
[1741685380558,0.05517328,124.38,124.37,8.0411]
[1741685381767,0.05517328,124.38,124.36,8.0414]
[1741685382974,8.09567328,124.38,124.36,8.0414]
[1741685383173,0.05517328,124.38,124.35,0.0552009]
[1741685383968,0.05517328,124.38,124.35,8.0973009]
[1741685384374,8.09617328,124.38,124.35,8.0973009]
[1741685384970,8.09617328,124.38,124.35,0.0552009]
[1741685385170,8.09617328,124.38,124.35,8.0973009]
[1741685385371,8.09617328,124.38,124.35,0.0552009]
[1741685385574,0.05517328,124.38,124.35,0.0552009]
[1741685385774,0.05517328,124.38,124.35,13.46581042]
[1741685386072,8.0374,124.43,124.35,13.46581042]
[1741685386275,194.0,124.46,124.37,13.41060952]
[1741685386576,194.0,124.46,124.39,8.0394]
[1741685386782,21.70930952,124.47,124.38,35.94]
[1741685387070,8.0376,124.43,124.41,0.05960423]
[1741685387276,0.05364452,124.44,124.41,0.05960423]
[1741685388070,0.05364452,124.44,124.42,35.9]
[1741685388274,0.05364452,124.44,124.43,8.0372]
[1741685389778,0.05364452,124.44,124.42,43.9377]
[1741685389971,0.05364452,124.44,124.42,35.9]
[1741685390370,215.41915266,124.5,124.42,35.9]
[1741685390575,8.3234,124.51,124.42,35.9]
[1741685390770,8.0335,124.49,124.42,35.9]
[1741685390981,10.95891524,124.53,124.43,21.41915266]
[1741685391178,10.95891524,124.53,124.43,21.76875266]
[1741685391379,18.98991524,124.53,124.43,21.76875266]
[1741685391578,0.0539219,124.49,124.47,0.05825473]
[1741685391783,0.0539219,124.49,124.48,36.78]
[1741685392177,10.95891524,124.53,124.48,36.78]
[1741685392775,10.95891524,124.53,124.52,8.0314]
[1741685392977,4.0786,124.59,124.52,36.84]
[1741685393175,4.0786,124.59,124.55,8.029]
[1741685393485,0.0570661,124.57,124.54,0.05745106]
[1741685393682,0.0570661,124.57,124.56,8.0289]
[1741685394281,0.0570661,124.57,124.55,8.0291]
[1741685394691,0.0570661,124.57,124.56,37.22]
[1741685395077,0.0570661,124.57,124.56,45.2489]
[1741685397178,0.0570661,124.57,124.56,37.22]
[1741685397378,0.0570661,124.57,124.54,0.05745106]
[1741685397581,0.0570661,124.57,124.54,37.45745106]
[1741685398378,8.0853661,124.57,124.54,37.45745106]
[1741685398984,0.0570661,124.57,124.56,8.0289]
[1741685399580,0.0570661,124.57,124.55,8.0293]
[1741685399982,0.0570661,124.57,124.55,38.2]
[1741685400383,0.0570661,124.57,124.54,0.05745106]
[1741685401086,8.0293,124.56,124.54,0.05745106]
[1741685401293,0.0570661,124.57,124.54,0.05745106]
[1741685401680,8.0289,124.56,124.54,0.05745106]
[1741685401881,0.0570661,124.57,124.54,0.05745106]
[1741685402082,21.47621876,124.57,124.54,0.05745106]
[1741685402480,21.41915266,124.55,124.48,46.1339]
[1741685402788,8.0325,124.51,124.47,303.08]
[1741685402994,21.41915266,124.53,124.48,8.0337]
[1741685403384,21.41915266,124.53,124.47,303.08]
[1741685403583,0.05336623,124.52,124.49,0.05595001]
[1741685404591,0.05336623,124.52,124.51,8.0321]
[1741685404788,0.05336623,124.52,124.51,46.4321]
[1741685406292,0.05336623,124.52,124.51,38.4]
[1741685407286,0.05336623,124.52,124.49,0.05595001]
[1741685407793,8.08496623,124.52,124.49,0.05595001]
[1741685407988,0.05336623,124.52,124.49,0.05595001]
[1741685408391,8.08526623,124.52,124.49,0.05595001]
[1741685408793,0.05336623,124.52,124.49,0.05595001]
[1741685408995,8.08526623,124.52,124.49,0.05595001]
[1741685409291,0.05336623,124.52,124.49,0.05595001]
[1741685410089,8.0357,124.46,124.42,38.48]
[1741685410283,21.41915266,124.49,124.42,38.48]
[1741685411085,29.52875266,124.51,124.42,38.48]
[1741685411291,0.05403058,124.47,124.44,0.05362709]
[1741685411694,0.05403058,124.47,124.46,8.0353]
[1741685411890,0.05403058,124.47,124.46,46.5153]
[1741685412090,4.313,124.54,124.46,40.9]
[1741685412399,4.313,124.54,124.46,38.48]
[1741685412797,8.032,124.52,124.48,8.0335]
[1741685412993,4.313,124.54,124.46,38.48]
[1741685413199,0.05558914,124.51,124.49,0.05873777]
[1741685413800,8.08808914,124.51,124.49,0.05873777]
[1741685414204,0.05558914,124.51,124.49,0.05873777]
[1741685414404,8.0327,124.5,124.49,0.05873777]
[1741685415205,8.0344,124.48,124.44,38.28]
[1741685415593,8.0344,124.48,124.44,46.3162]
[1741685415799,8.0351,124.47,124.44,38.28]
[1741685416104,8.0351,124.47,124.44,46.3165]
[1741685416305,8.09143683,124.47,124.44,46.37566463]
[1741685416505,0.05633683,124.47,124.44,46.37566463]
[1741685416706,0.05633683,124.47,124.45,8.0358]
[1741685417006,0.05633683,124.47,124.44,38.33916463]
[1741685417901,0.05633683,124.47,124.46,8.0353]
[1741685420306,8.0354,124.46,124.44,0.05916463]
[1741685420507,0.05633683,124.47,124.44,38.19916463]
[1741685420909,8.0353,124.46,124.44,38.19916463]
[1741685421412,0.05633683,124.47,124.45,8.0358]
[1741685421611,0.05633683,124.47,124.44,38.19916463]
[1741685422409,0.05633683,124.47,124.44,0.05916463]
[1741685423413,8.0356,124.46,124.44,0.05916463]
[1741685423614,21.47548949,124.47,124.39,264.94]
[1741685423812,21.41915266,124.47,124.4,37.96]
[1741685424218,42.1991,124.48,124.4,37.96]
[1741685424514,8.036,124.45,124.4,37.96]
[1741685424916,0.05155026,124.44,124.41,0.04547858]
[1741685425611,8.08845026,124.44,124.41,0.04547858]
[1741685426811,0.05155026,124.44,124.41,8.08367858]
[1741685427012,0.05155026,124.44,124.41,0.04547858]
[1741685427912,8.08835026,124.44,124.41,8.08367858]
[1741685428418,0.05155026,124.44,124.41,0.04547858]
[1741685429113,0.05155026,124.44,124.43,8.0372]
[1741685429307,0.05155026,124.44,124.43,37.72]
[1741685430012,0.05155026,124.44,124.41,0.04547858]
[1741685430613,8.0379,124.42,124.41,0.04547858]
[1741685431817,8.0375,124.43,124.41,0.04547858]
[1741685432013,4.16095026,124.44,124.41,0.04547858]
[1741685433215,8.0379,124.42,124.41,0.04547858]
[1741685433920,8.0375,124.43,124.41,0.04547858]
[1741685434115,0.05155026,124.44,124.42,37.54]
[1741685434922,0.05155026,124.44,124.41,0.04547858]
[1741685435113,8.0379,124.42,124.41,0.04547858]
[1741685436524,8.0373,124.43,124.41,0.04547858]
[1741685436825,0.05155026,124.44,124.41,0.04547858]
[1741685437322,8.0379,124.42,124.41,0.04547858]
[1741685437725,0.05155026,124.44,124.41,0.04547858]
[1741685438723,0.05155026,124.44,124.41,37.44547858]
[1741685439227,0.05155026,124.44,124.43,8.0372]
[1741685439817,0.05155026,124.44,124.41,45.48367858]
[1741685440021,8.08815026,124.44,124.41,45.48367858]
[1741685440525,8.08815026,124.44,124.41,37.44547858]
[1741685440727,8.0379,124.42,124.41,37.44547858]
[1741685440927,0.05155026,124.44,124.41,37.44547858]
[1741685441332,8.0375,124.43,124.41,37.44547858]
[1741685441629,0.05155026,124.44,124.41,37.44547858]
[1741685441835,8.0376,124.43,124.41,37.44547858]
[1741685442026,0.05155026,124.44,124.41,0.04547858]
[1741685442225,4.10035026,124.44,124.41,0.04547858]
[1741685442534,8.0372,124.43,124.41,0.04547858]
[1741685442832,4.10035026,124.44,124.41,0.04547858]
[1741685443032,4.10035026,124.44,124.41,8.08367858]
[1741685444031,12.13735026,124.44,124.41,8.08367858]
[1741685444238,12.13735026,124.44,124.41,0.04547858]
[1741685444431,0.05155026,124.44,124.41,0.04547858]
[1741685444631,0.05155026,124.44,124.43,8.0372]
[1741685444827,0.05155026,124.44,124.41,37.30547858]
[1741685445333,0.05155026,124.44,124.42,8.0379]
[1741685445734,0.05155026,124.44,124.41,37.30547858]
[1741685446432,0.05155026,124.44,124.42,8.0378]
[1741685447039,0.05155026,124.44,124.41,37.30547858]
[1741685447438,8.08845026,124.44,124.41,37.30547858]
[1741685447639,0.05155026,124.44,124.42,8.0375]
[1741685448047,0.05155026,124.44,124.41,37.30547858]
[1741685448245,0.05155026,124.44,124.43,8.0372]
[1741685448741,0.05155026,124.44,124.42,8.0376]
[1741685448949,0.05155026,124.44,124.41,37.30547858]
[1741685449144,8.08855026,124.44,124.41,37.30547858]
[1741685449444,0.05155026,124.44,124.41,37.30547858]
[1741685450444,0.05155026,124.44,124.43,8.0372]
[1741685451547,8.0336,124.49,124.46,8.0349]
[1741685452541,8.0346,124.48,124.45,45.0956]
[1741685452844,0.05771444,124.49,124.46,0.05444074]
[1741685454243,8.0344,124.48,124.46,0.05444074]
[1741685454947,8.0347,124.47,124.46,0.05444074]
[1741685455646,8.0343,124.48,124.46,0.05444074]
[1741685456748,8.09141444,124.49,124.47,8.0346]
[1741685457045,8.09141444,124.49,124.46,0.05444074]
[1741685457248,0.05771444,124.49,124.46,0.05444074]
[1741685457650,8.0347,124.47,124.46,0.05444074]
[1741685457845,0.05771444,124.49,124.46,0.05444074]
[1741685458248,8.0347,124.47,124.46,0.05444074]
[1741685458643,0.05771444,124.49,124.46,0.05444074]
[1741685459248,8.0345,124.48,124.46,0.05444074]
[1741685460147,8.09141444,124.49,124.46,0.05444074]
[1741685460638,8.0341,124.48,124.46,0.05444074]
[1741685461249,8.0347,124.47,124.46,0.05444074]
[1741685461450,13.44036998,124.49,124.46,0.05444074]
[1741685461946,21.47406998,124.49,124.46,8.08924074]
[1741685462245,13.44036998,124.49,124.46,0.05444074]
[1741685462949,8.0344,124.48,124.46,0.05444074]
[1741685463944,13.44036998,124.49,124.46,0.05444074]
[1741685464145,21.41735554,124.47,124.46,0.05444074]
[1741685464347,13.38265554,124.47,124.44,36.86]
[1741685464551,8.0366,124.45,124.41,273.1582]
[1741685464744,13.38265554,124.47,124.42,36.28]
[1741685465247,8.0367,124.44,124.42,36.28]
[1741685465439,13.38265554,124.45,124.37,87.95278127]
[1741685465644,13.38265554,124.43,124.42,0.0425881]
[1741685465848,21.41985554,124.43,124.42,0.0425881]
[1741685468045,8.0381,124.42,124.38,36.26]
[1741685468755,8.0374,124.43,124.38,36.26]
[1741685468944,13.38265554,124.45,124.38,36.26]
[1741685469145,0.05621471,124.42,124.38,36.26]
[1741685469853,0.05621471,124.42,124.4,8.0388]
[1741685471155,0.05621471,124.42,124.41,8.0385]
[1741685471451,0.05621471,124.42,124.39,36.1]
[1741685471955,0.05621471,124.42,124.4,8.0389]
[1741685472255,0.05621471,124.42,124.39,36.1]
[1741685472754,0.05621471,124.42,124.4,8.0388]
[1741685473243,0.05621471,124.42,124.4,8.0392]
[1741685473443,0.05621471,124.42,124.39,36.1]
[1741685474353,8.09441471,124.42,124.39,44.1395]
[1741685474752,8.039,124.41,124.39,36.1]
[1741685474954,0.05621471,124.42,124.39,36.1]
[1741685475255,13.43887025,124.42,124.35,309.0019]
[1741685475549,4.1601,124.41,124.35,273.1619]
[1741685475748,13.38265554,124.4,124.35,265.12]
[1741685475949,8.0405,124.38,124.35,308.9621]
[1741685476753,0.05946846,124.39,124.35,265.12]
[1741685476952,8.0418,124.36,124.34,35.76]
[1741685477153,0.05946846,124.39,124.32,87.95278127]
[1741685477347,0.05683901,124.36,124.33,35.76]
[1741685477953,0.05683901,124.36,124.35,8.0424]
[1741685478256,8.0381,124.42,124.34,13.38265554]
[1741685478456,8.0381,124.42,124.38,8.0401]
[1741685478646,13.38265554,124.44,124.38,8.0401]
[1741685478851,13.38265554,124.42,124.37,35.7]
[1741685479057,3.9697,124.42,124.37,35.7]
[1741685479355,0.05952936,124.41,124.38,0.05219061]
[1741685479557,13.38265554,124.4,124.38,0.05219061]
[1741685479757,8.0398,124.39,124.38,0.05219061]
[1741685480961,13.38265554,124.4,124.32,35.66]
[1741685481159,4.1709,124.39,124.32,35.66]
[1741685481547,4.1709,124.39,124.32,49.04265554]
[1741685481859,4.1709,124.39,124.35,8.0421]
[1741685481860,12.2113,124.39,124.35,8.0421]
[1741685482060,0.0528565,124.37,124.35,8.0421]
[1741685482355,0.0528565,124.37,124.32,49.04265554]
[1741685482658,0.0528565,124.37,124.36,8.0418]
[1741685482859,0.0528565,124.37,124.32,49.04265554]
[1741685483558,0.0528565,124.37,124.36,8.0418]
[1741685483858,0.0528565,124.37,124.32,35.66]
[1741685484257,0.0528565,124.37,124.32,43.7038]
[1741685484652,8.0445,124.32,124.26,101.33543681]
[1741685484857,13.43551204,124.37,124.27,35.5]
[1741685484858,13.38265554,124.33,124.27,35.5]
[1741685485053,0.05765615,124.32,124.27,35.5]
[1741685485257,8.10245615,124.32,124.28,8.0466]
[1741685485749,8.0451,124.31,124.28,8.0466]
[1741685485953,0.05765615,124.32,124.28,8.0466]
[1741685486359,8.0454,124.31,124.28,8.0466]
[1741685486557,0.05765615,124.32,124.27,35.5]
[1741685487061,0.05765615,124.32,124.28,13.38265554]
[1741685487253,0.01115615,124.32,124.28,13.38265554]
[1741685487862,0.01115615,124.32,124.3,13.38265554]
[1741685488063,0.01115615,124.32,124.31,35.34]
[1741685488464,8.0407,124.38,124.31,35.34]
[1741685488661,13.38265554,124.39,124.31,35.34]
[1741685488862,8.0421,124.36,124.32,8.044]
[1741685489056,13.38265554,124.39,124.31,35.34]
[1741685489367,8.0408,124.38,124.34,8.0427]
[1741685489662,0.05809166,124.36,124.34,8.10222573]
[1741685489864,0.05809166,124.36,124.34,0.05952573]
[1741685491364,8.10039166,124.36,124.34,0.05952573]
[1741685491566,0.05809166,124.36,124.34,0.05952573]
[1741685492162,8.0424,124.35,124.34,0.05952573]
[1741685493364,8.0448,124.32,124.26,0.4655]
[1741685493868,25.68431817,124.35,124.27,35.02]
[1741685494069,8.0438,124.33,124.27,35.02]
[1741685494571,0.05247159,124.31,124.27,35.02]
[1741685495376,0.05247159,124.31,124.28,34.92]
[1741685495768,21.45811817,124.33,124.28,34.92]
[1741685495968,0.06163046,124.31,124.28,34.92]
[1741685496172,8.046,124.3,124.28,34.92]
[1741685496373,0.06163046,124.31,124.23,286.65811817]
[1741685496670,21.45811817,124.33,124.26,8.0479]
[1741685496872,0.05751362,124.28,124.23,265.2]
[1741685497171,0.05068372,124.27,124.25,8.0486]
[1741685497374,0.05068372,124.27,124.24,34.84]
[1741685499667,0.05068372,124.27,124.25,34.72]
[1741685499867,0.05068372,124.27,124.24,8.0491]
[1741685500069,0.05068372,124.27,124.25,34.7]
[1741685500268,0.05068372,124.27,124.26,8.0482]
[1741685501073,0.05068372,124.27,124.25,42.7486]
[1741685501473,0.05068372,124.27,124.25,34.7]
[1741685501772,0.05068372,124.27,124.23,265.2]
[1741685501971,0.05068372,124.27,124.24,34.62]
[1741685502776,0.05068372,124.27,124.25,8.0483]
[1741685502982,0.05068372,124.27,124.25,34.58]
[1741685503576,0.05068372,124.27,124.26,8.0482]
[1741685503778,0.05068372,124.27,124.25,34.58]
[1741685504273,0.05068372,124.27,124.18,168.22912719]
[1741685504479,21.45811817,124.27,124.19,1.45467884]
[1741685504674,0.05402793,124.24,124.2,8.0518]
[1741685504874,0.05402793,124.24,124.19,34.48]
[1741685506377,0.05402793,124.24,124.2,1.45467065]
[1741685506778,0.05402793,124.24,124.19,55.93811817]
[1741685507077,0.05402793,124.24,124.2,1.45422647]
[1741685507577,0.05402793,124.24,124.22,8.0504]
[1741685507781,0.05402793,124.24,124.23,34.42]
[1741685509282,0.05402793,124.24,124.23,42.4702]
[1741685516190,0.05402793,124.24,124.23,34.42]
[1741685517694,0.05402793,124.24,124.22,8.0505]
[1741685518094,0.05402793,124.24,124.21,34.02]
[1741685519294,0.05402793,124.24,124.22,8.0505]
[1741685519495,0.05402793,124.24,124.21,34.02]
[1741685519794,0.05402793,124.24,124.18,93.70585165]
[1741685519995,0.05402793,124.24,124.21,33.96]
[1741685520493,2.793e-05,124.24,124.22,13.42950573]
[1741685521095,2.793e-05,124.24,124.23,8.0502]
[1741685522492,2.793e-05,124.24,124.22,0.05677882]
[1741685524101,2.793e-05,124.24,124.23,8.0502]
[1741685524700,2.793e-05,124.24,124.22,0.05677882]
[1741685526294,2.793e-05,124.24,124.23,42.0102]
[1741685529301,101.42623584,124.37,124.23,36.38]
[1741685529600,52.85845488,124.36,124.29,13.42950573]